{"text_format":"1","workbook":"xlsx","n_sheets":2,"sheets":["Ration Request","Day 14 Practical "],"not_rendered":{"charts":0,"images":0,"macros":1,"external_links":0,"defined_names":4,"comments":0,"pivot_tables":0},"unopened":[],"bounds":{"document_bytes":16777216,"sheet_cells":100000,"rows_first":2000,"rows_last":500,"rows_between":2000,"halvings":0,"cell_chars":16384,"cell_head_chars":4096},"cells_cut":0,"cells_raw":0,"read":"whole","date_system":"1900"}

{"sheet":"Ration Request","index":0,"n_rows":428,"n_cols":24,"rows_kept":428,"cut":false,"hidden":false,"merged":[[0,0,0,10],[1,0,1,10],[9,20,9,21],[9,22,9,23],[4,9,4,10],[7,14,7,15],[8,20,8,23],[2,0,2,10],[9,11,9,15],[214,11,214,15],[298,11,298,15],[41,11,41,15],[69,10,69,12],[69,13,69,15],[80,10,80,13],[80,14,80,15]]}
["PURCHASING REQUISITION:"]
["Please submit order by January 12th 2018"]
["43rd Annual JCTE",null,null,null,null,null,null,null,null,null,null,null,"Delivery Date:"]
[]
[null,"Req'd By:",null,null,null,null,null,null,null,null,null,null,"Submitted:"]
[]
[null,"DAY",1,2,3,4,5,6,null,1]
[null,null,null,null,null,null,null,null,null,null,null,null,null,null,"Do Not Use"]
["#","CODE","Nutritional","Student Skills","SCOTY","Field","P","K","Cold Food ","CAT","INGREDIENT","AMT","U/I","SPECIFICATIONS","ORD","REC",null,null,null,null,"Administrator Only"]
[1,null,null,null,null,null,null,null,null,null,"Meats and Poultry",null,null,null,null,null,null,12,"Ozw",null,"Units of Issue List",null,"Ordering Codes"]
[2,null,null,null,null,null,null,null,null,null,"Beef Tripe",null,"LB",null,null,null,null,1,"EA",null,"Bag","Bag","Dairy","Dairy, eggs"]
[3,null,null,null,null,null,null,null,null,null,"Beef, Flank Steak (8LBS EA)",null,"LB",null,null,null,null,2,"EA",null,"Bch","Bunch","Groc","Grocery (Dry, Canned, Spices, etc)"]
[4,null,null,null,null,null,null,null,null,null,"Beef Short Rib (7 LBS EA)",null,"LB",null,null,null,null,3,"Ozw",null,"Bskt","Basket","Fish","Fish and Seafood"]
[5,null,null,null,null,null,null,null,null,null,"Beef Tenderloin (5-7 LBS EA)",null,"LB",null,null,null,null,6,"Ozw",null,"Bx","Box","Prod","Produce"]
[6,null,null,null,null,null,null,null,null,null,"Beef, Ground (5 LBS)",null,"LB",null,null,null,null,2,"Qt",null,"Can","Can","Meat","Meat"]
[7,null,null,null,null,null,null,null,null,null,"Beef, Brisket (5-8 LBS EA)",null,"LB",null,null,null,null,1,"Bch",null,"Cup","Cup","Bake","Bread and Baked Goods"]
[8,null,null,null,null,null,null,null,null,null,"Turkey, Whole",null,"LB",null,null,null,null,4,"EA",null,"Crtn","Carton","Alch","Alcoholic Beverages"]
[9,null,null,null,null,null,null,null,null,null,"Chicken, Whole (3 LBS EA)",null,"LB",null,null,null,null,3,"EA",null,"Cs","Case","Spec","Specialty Items"]
[10,null,null,null,null,null,null,null,null,null,"Cornish Game Hen",null,"EA",null,null,null,null,1,"Flat",null,"EA","Each"]
[11,null,null,null,null,null,null,null,null,null,"Duck, Liver Milk Fed (5LBS EA)",null,"LB",null,null,null,null,6,"EA",null,"Flat","Flat"]
[12,null,null,null,null,null,null,null,null,null,"Duckling, Whole (8-10LBS EA)",null,"LB",null,null,null,null,0.25,"Bch",null,"Gal","Gallon"]
[13,null,null,null,null,null,null,null,null,null,"Goose, Whole (8-10LBS EA)",null,"LB",null,null,null,null,0.25,"Bch",null,"Gr","Gram"]
[14,null,null,null,null,null,null,null,null,null,"Lamb  (20-25LBS EA)",null,"LB",null,null,null,null,2,"Hd",null,"Hd","Head"]
[15,null,null,null,null,null,null,null,null,null,"Lamb Rib Chop (5-6LBS EA)",null,"LB",null,null,null,null,0.5,"LB",null,"Kilo","Kilo"]
[16,null,null,null,null,null,null,null,null,null,"Lamb Stew Meat (10LBS EA)",null,"LB",null,null,null,null,1,"EA",null,"LB","Pound"]
[17,null,null,null,null,null,null,null,null,null,"Lamb, Frenched Rack (2LBS EA)",null,"LB",null,null,null,null,1,"EA",null,"Loaf","Loaf"]
[18,null,null,null,null,null,null,null,null,null,"Lamb, Loin Saddle (5-6LBS EA)",null,"LB",null,null,null,null,0.5,"Qt",null,"Ozv","Fluid Ounce (Volume)"]
[19,null,null,null,null,null,null,null,null,null,"Lamb, Loin Chops ",null,"LB",null,null,null,null,0.25,"LB",null,"Ozw","Ounce (wright)"]
[20,null,null,null,null,null,null,null,null,null,"Pork Tenderloin",null,"EA",null,null,null,null,0.25,"LB",null,"Pk","Pack"]
[21,null,null,null,null,null,null,null,null,null,"Pork Butt (13LBS EA)",null,"EA",null,null,null,null,1,"EA",null,"Pt","Pint"]
[22,null,null,null,null,null,null,null,null,null,"Pork, Baby Back Ribs (13LBS EA)",null,"EA",null,null,null,null,1,"EA",null,"Qt","Quart"]
[23,null,null,null,null,null,null,null,null,null,"Pork Bacon (5-6LBS EA)",null,"EA",null,null,null,null,1,"EA",null,"Tbl","Tablespoon"]
[24,null,null,null,null,null,null,null,null,null,"Pork, Chop Center Cut (12OZ EA)",null,"EA",null,null,null,null,null,null,null,"Tray","Tray"]
[25,null,null,null,null,null,null,null,null,null,"Pork Country Ham (12-14LBS EA)",{"$f":"IF(R33=0,\"\",$C$8*R33)","v":""},"EA",null,null,null,null,null,null,null,"tsp","Teaspoon"]
[26,null,null,null,null,null,null,null,null,null,"Pork Ham Hocks","","LB"]
[27,null,null,null,null,null,null,null,null,null,"Pork Loin Bone In","","EA"]
[28,null,null,null,null,null,null,null,null,null,"Pork Prosciutto","","EA"]
[29,null,null,null,null,null,null,null,null,null,"Pork Smoked Bacon","","EA"]
[30,null,null,null,null,null,null,null,null,null,"Pork Spare Ribs","","EA"]
[31,null,null,null,null,null,null,null,null,null,"Veal, Loin Bone on","","EA"]
[32,null,null,null,null,null,null,null,null,null,"Veal, Shank","","EA"]
[33,null,null,null,null,null,null,null,null,null,"Fish and Seafood"]
[34,null,null,null,null,null,null,null,null,null,"Crab, Lump",{"$f":"IF(R46=0,\"\",$C$8*R46)","v":""},"EA"]
[35,null,null,null,null,null,null,null,null,null,"Catfish","","LB"]
[36,null,null,null,null,null,null,null,null,null,"Clams, Littleneck","","EA"]
[37,null,null,null,null,null,null,null,null,null,"Cod, Filet","","LB"]
[38,null,null,null,null,null,null,null,null,null,"Crayfish, Fresh or Frozen","","LBS"]
[39,null,null,null,null,null,null,null,null,null,"Shelf-Stable Caviar (controlled item)","","EA"]
[40,null,null,null,null,null,null,null,null,null,"Bass, Fresh Water","","LB"]
[41,null,null,null,null,null,null,null,null,null,"Crab, King","","LB"]
[42,null,null,null,null,null,null,null,null,null,"Crab, Blue","","LB"]
[43,null,null,null,null,null,null,null,null,null,"Crab, Soft-Shell",""]
[44,null,null,null,null,null,null,null,null,null,"Flounder, Whole","","LB"]
[45,null,null,null,null,null,null,null,null,null,"Grouper","","LB"]
[46,null,null,null,null,null,null,null,null,null,"Haddock, Fillet","","LB"]
[47,null,null,null,null,null,null,null,null,null,"Mussels, Fresh","","LB"]
[48,null,null,null,null,null,null,null,null,null,"Mackerel, Whole","","LB"]
[49,null,null,null,null,null,null,null,null,null,"Red Snapper, Whole","","LB"]
[50,null,null,null,null,null,null,null,null,null,"Perch, Yellow or White","","LB"]
[51,null,null,null,null,null,null,null,null,null,"Sole, Dover","","LB"]
[52,null,null,null,null,null,null,null,null,null,"Salmon, Filet","","LB"]
[53,null,null,null,null,null,null,null,null,null,"Salmon, Whole","","EA"]
[54,null,null,null,null,null,null,null,null,null,"Scallops, Sea U10","","Cs"]
[55,null,null,null,null,null,null,null,null,null,"Scallops, Sea U20","","Cs"]
[56,null,null,null,null,null,null,null,null,null,"Sea Bass, Whole","","LB"]
[57,null,null,null,null,null,null,null,null,null,"Shrimp, All Sizes",{"$f":"IF(R71=0,\"\",$C$8*R71)","v":""},"LB"]
[58,null,null,null,null,null,null,null,null,null,"Tilapia",{"$f":"IF(R72=0,\"\",$C$8*R72)","v":""},"LB"]
[59,null,null,null,null,null,null,null,null,null,"Trout, Rainbow",{"$f":"IF(R74=0,\"\",$C$8*R74)","v":""},"LB"]
[60,null,null,null,null,null,null,null,null,null,"Turkey, Breast",null,"LB"]
[61,null,null,null,null,null,null,null,null,null,"Special Order Items"]
[62,null,null,null,null,null,null,null,null,null,"Dark Chocolate, Bittersweet",{"$f":"IF(R75=0,\"\",$C$8*R75)","v":""},"Cs"]
[63,null,null,null,null,null,null,null,null,null,"Fondant- Pouring, Rolled ","","CO"]
[64,null,null,null,null,null,null,null,null,null,"Glucose","","CO"]
[65,null,null,null,null,null,null,null,null,null,"Glycerin","","CO"]
[66,null,null,null,null,null,null,null,null,null,"Great Lakes Gelatin","","CO"]
[67,null,null,null,null,null,null,null,null,null,"Isomalt","","CO"]
[68,null,null,null,null,null,null,null,null,null,"Sheet Gelatin","","CO"]
[69,null,null,null,null,null,null,null,null,null,"Milk Chocolate","","CO"]
[70,null,null,null,null,null,null,null,null,null,"White Chocolate","","CO"]
[71,null,null,null,null,null,null,null,null,null,"Writing Chocolate","","CO"]
[72,null,null,null,null,null,null,null,null,null,"Self Service Rations Store (This List is Subject to Change With Advance Notice)"]
[73,null,null,null,null,null,null,null,null,null,"Almond Oil",{"$f":"IF(R86=0,\"\",$C$8*R86)","v":""},"CO"]
[74,null,null,null,null,null,null,null,null,null,"Almond Paste Roll","","CO"]
[75,null,null,null,null,null,null,null,null,null,"Anchovy Filets","","CO"]
[76,null,null,null,null,null,null,null,null,null,"Apple Cider Vinegar","","CO"]
[77,null,null,null,null,null,null,null,null,null,"Aromatic Britters ","","CO"]
[78,null,null,null,null,null,null,null,null,null,"Balsamic Vinegar","","CO"]
[79,null,null,null,null,null,null,null,null,null,"Red Wine Vinegar","","CO"]
[80,null,null,null,null,null,null,null,null,null,"Artichoke Hearts","","CO"]
[81,null,null,null,null,null,null,null,null,null,"Bing Cherries","","CO"]
[82,null,null,null,null,null,null,null,null,null,"Black Pepper","","CO"]
[83,null,null,null,null,null,null,null,null,null,"Black Peppercorns","","CO"]
[84,null,null,null,null,null,null,null,null,null,"Black Sesame Seeds","","EA"]
[85,null,null,null,null,null,null,null,null,null,"Black Truffle Oil","","CO"]
[86,null,null,null,null,null,null,null,null,null,"Boysenberries, Cnd","","CO"]
[87,null,null,null,null,null,null,null,null,null,"Panko Bread Crumbs","","CO"]
[88,null,null,null,null,null,null,null,null,null,"White Wine Vinegar","","CO"]
[89,null,null,null,null,null,null,null,null,null,"Cake Flour","","CO"]
[90,null,null,null,null,null,null,null,null,null,"Caster Sugar","","BG"]
[91,null,null,null,null,null,null,null,null,null,"Calrose Rice","","LB"]
[92,null,null,null,null,null,null,null,null,null,"Vinegar","","CO"]
[93,null,null,null,null,null,null,null,null,null,"Chick Pea-Tin","","CO"]
[94,null,null,null,null,null,null,null,null,null,"Chiles Chipotles, Cnd","","CO"]
[95,null,null,null,null,null,null,null,null,null,"Banana Peppers","","Gal"]
[96,null,null,null,null,null,null,null,null,null,"Red Currant Jelly","","EA"]
[97,null,null,null,null,null,null,null,null,null,"Worchestershire Sauce","","CO"]
[98,null,null,null,null,null,null,null,null,null,"Almonds, Whole","","CO"]
[99,null,null,null,null,null,null,null,null,null,"Bouillon, Beef",""]
[100,null,null,null,null,null,null,null,null,null,"Bouillon, Chicken","","B/T"]
[101,null,null,null,null,null,null,null,null,null,"Chocolate Chips","","GAL"]
[102,null,null,null,null,null,null,null,null,null,"Chopped Hazelnuts","","CO"]
[103,null,null,null,null,null,null,null,null,null,"Cider Vinegar","","BX"]
[104,null,null,null,null,null,null,null,null,null,"Classic Olive Oil","","B/T"]
[105,null,null,null,null,null,null,null,null,null,"Coconut Milk","","LBS"]
[106,null,null,null,null,null,null,null,null,null,"Cooking Wine","","LBS"]
[107,null,null,null,null,null,null,null,null,null,"Cornmeal","","LBS"]
[108,null,null,null,null,null,null,null,null,null,"Couveture Chocolate, Black","","BG"]
[109,null,null,null,null,null,null,null,null,null,"Couveture Chocolate, White","","LBS"]
[110,null,null,null,null,null,null,null,null,null,"Kosher Salt","","B/T"]
[111,null,null,null,null,null,null,null,null,null,"Crushed Red Pepper","","B/T"]
[112,null,null,null,null,null,null,null,null,null,"Curry Powder","","GAL"]
[113,null,null,null,null,null,null,null,null,null,"Dill Seed, Ground","","B/T"]
[114,null,null,null,null,null,null,null,null,null,"Dill Weed 5oz","","GAL"]
[115,null,null,null,null,null,null,null,null,null,"Dried Blueberries",{"$f":"IF(R128=0,\"\",$C$8*R128)","v":""},"CN"]
[116,null,null,null,null,null,null,null,null,null,"Dried Cherries","","GAL"]
[117,null,null,null,null,null,null,null,null,null,"Dried Cranberries","","OZ"]
[118,null,null,null,null,null,null,null,null,null,"Dried Tart Cherries","","LBS"]
[119,null,null,null,null,null,null,null,null,null,"Dried Tomato Halves","","BX"]
[120,null,null,null,null,null,null,null,null,null,"Egg White Powder","","B/T"]
[121,null,null,null,null,null,null,null,null,null,"Extra Light Olive Oil","","CO"]
[122,null,null,null,null,null,null,null,null,null,"Extra Virgin Olive Oil","","CO"]
[123,null,null,null,null,null,null,null,null,null,"Figs, Dried","","CO"]
[124,null,null,null,null,null,null,null,null,null,"Filbert Paste","","B/T"]
[125,null,null,null,null,null,null,null,null,null,"Flour Rose Water","","CO"]
[126,null,null,null,null,null,null,null,null,null,"Flour Whole Wheat","","CO"]
[127,null,null,null,null,null,null,null,null,null,"Flour, White, A.P.","","PK"]
[128,null,null,null,null,null,null,null,null,null,"Gourmet Lychees, CND","","PK"]
[129,null,null,null,null,null,null,null,null,null,"Vinegar, Distilled","","PK"]
[130,null,null,null,null,null,null,null,null,null,"Granulated Garlic","","PK"]
[131,null,null,null,null,null,null,null,null,null,"Granulated Onion","","PK"]
[132,null,null,null,null,null,null,null,null,null,"Grape Seed Oil","","PK"]
[133,null,null,null,null,null,null,null,null,null,"Ground Allspice","","CO"]
[134,null,null,null,null,null,null,null,null,null,"Ground Cinnamon","","GAL"]
[135,null,null,null,null,null,null,null,null,null,"Ground Cumin","","GAL"]
[136,null,null,null,null,null,null,null,null,null,"Ground Ginger","","BG"]
[137,null,null,null,null,null,null,null,null,null,"Ground Nutmeg","","CO"]
[138,null,null,null,null,null,null,null,null,null,"Ground Red Pepper","","CO"]
[139,null,null,null,null,null,null,null,null,null,"Ground Thyme","","OZ"]
[140,null,null,null,null,null,null,null,null,null,"Guava Nectar","","B/T"]
[141,null,null,null,null,null,null,null,null,null,"Gum Paste","","PK"]
[142,null,null,null,null,null,null,null,null,null,"Hame Base","","PK"]
[143,null,null,null,null,null,null,null,null,null,"Macadamia Nut, Whole","","BX"]
[144,null,null,null,null,null,null,null,null,null,"Hazelnut Oil","","B/T"]
[145,null,null,null,null,null,null,null,null,null,"Hazelnuts, Whl, Bg","","B/T"]
[146,null,null,null,null,null,null,null,null,null,"Hoisin Sauce","","GAL"]
[147,null,null,null,null,null,null,null,null,null,"Horseradish","","BX"]
[148,null,null,null,null,null,null,null,null,null,"Horseradish, Creamy","","B/T"]
[149,null,null,null,null,null,null,null,null,null,"Instant NF Dry Milk","","CO"]
[150,null,null,null,null,null,null,null,null,null,"Key Lime Juice","","CO"]
[151,null,null,null,null,null,null,null,null,null,"Light Chili Powder","","CO"]
[152,null,null,null,null,null,null,null,null,null,"Liquid Smoke","","CO"]
[153,null,null,null,null,null,null,null,null,null,"Pepper, White Grd.","","CO"]
[154,null,null,null,null,null,null,null,null,null,"Bay Leaves, Whl","","CO"]
[155,null,null,null,null,null,null,null,null,null,"Thai Curry Paste, Grn","","CO"]
[156,null,null,null,null,null,null,null,null,null,"Tomato Paste","","CO"]
[157,null,null,null,null,null,null,null,null,null,"Gum Paste 2lbs","","CO"]
[158,null,null,null,null,null,null,null,null,null,"Cherries 16 oz Jar","","LBS"]
[159,null,null,null,null,null,null,null,null,null,"Lite Apricot Halves, Cnd","","LBS"]
[160,null,null,null,null,null,null,null,null,null,"Malt Vinegar","","GAL"]
[161,null,null,null,null,null,null,null,null,null,"Maraschino Cherries","","LBS"]
[162,null,null,null,null,null,null,null,null,null,"Marsala Cooking Wine","","CO"]
[163,null,null,null,null,null,null,null,null,null,"Marzipan","","B/T"]
[164,null,null,null,null,null,null,null,null,null,"Mirin","","B/T"]
[165,null,null,null,null,null,null,null,null,null,"Mesquite Liquid Smoke","","B/T"]
[166,null,null,null,null,null,null,null,null,null,"Onion Salt","","B/T"]
[167,null,null,null,null,null,null,null,null,null,"Olives, Kalamata","","GAL"]
[168,null,null,null,null,null,null,null,null,null,"Onion Powder","","LBS"]
[169,null,null,null,null,null,null,null,null,null,"Oregano Leaves","","CN"]
[170,null,null,null,null,null,null,null,null,null,"Oyster Sauce","","CO"]
[171,null,null,null,null,null,null,null,null,null,"Pine Nuts","","CO"]
[172,null,null,null,null,null,null,null,null,null,"Pistachios","","B/T"]
[173,null,null,null,null,null,null,null,null,null,"Pectin","","B/T"]
[174,null,null,null,null,null,null,null,null,null,"Paprika","","LBS"]
[175,null,null,null,null,null,null,null,null,null,"Peach Preserves","","CO"]
[176,null,null,null,null,null,null,null,null,null,"Peppercorn Melody","","CO"]
[177,null,null,null,null,null,null,null,null,null,"Peanut Oil","","CO"]
[178,null,null,null,null,null,null,null,null,null,"Pickling Spice","","CO"]
[179,null,null,null,null,null,null,null,null,null,"Plain Bread Crumbs",{"$f":"IF(R192=0,\"\",$C$8*R192)","v":""},"CO"]
[180,null,null,null,null,null,null,null,null,null,"Poultry Seasoning","","GAL"]
[181,null,null,null,null,null,null,null,null,null,"Herbs de Provincal","","CO"]
[182,null,null,null,null,null,null,null,null,null,"Pumpkin Seeds","","LBS"]
[183,null,null,null,null,null,null,null,null,null,"Pure Corn Oil","","CO"]
[184,null,null,null,null,null,null,null,null,null,"Rice Paper","","CO"]
[185,null,null,null,null,null,null,null,null,null,"Rosemary, Dry","","CO"]
[186,null,null,null,null,null,null,null,null,null,"Saffron, Envelope","","CO"]
[187,null,null,null,null,null,null,null,null,null,"Salad Oil","","B/T"]
[188,null,null,null,null,null,null,null,null,null,"Sauce Wasabi","","B/T"]
[189,null,null,null,null,null,null,null,null,null,"Sesame Oil","","CO"]
[190,null,null,null,null,null,null,null,null,null,"Sesame Seed","","B/T"]
[191,null,null,null,null,null,null,null,null,null,"Sherry Vinegar","","CO"]
[192,null,null,null,null,null,null,null,null,null,"Sliced Almonds","","B/T"]
[193,null,null,null,null,null,null,null,null,null,"Spanish Olives","","CN"]
[194,null,null,null,null,null,null,null,null,null,"Star Anise","","CO"]
[195,null,null,null,null,null,null,null,null,null,"Strawberry Preserves","","CO"]
[196,null,null,null,null,null,null,null,null,null,"Sugar, Brown","","CN"]
[197,null,null,null,null,null,null,null,null,null,"Sugar, Granulated","","GAL"]
[198,null,null,null,null,null,null,null,null,null,"Sunflower Oil","","CO"]
[199,null,null,null,null,null,null,null,null,null,"Syrup, Maple","","CO"]
[200,null,null,null,null,null,null,null,null,null,"Tarragon Leaves","","CO"]
[201,null,null,null,null,null,null,null,null,null,"Walnut Oil","","GAL"]
[202,null,null,null,null,null,null,null,null,null,"Walnuts, Shelled",{"$f":"IF(R216=0,\"\",$C$8*R216)","v":""},"CO"]
[203,null,null,null,null,null,null,null,null,null,"White Balsamic Vinegar",{"$f":"IF(R218=0,\"\",$C$8*R218)","v":""},"CO"]
[204,null,null,null,null,null,null,null,null,null,"Whole Fennel Seeds",{"$f":"IF(R219=0,\"\",$C$8*R219)","v":""},"B/T"]
[205,null,null,null,null,null,null,null,null,null,"Yellow Rice",{"$f":"IF(R220=0,\"\",$C$8*R220)","v":""},"CO"]
[206,null,null,null,null,null,null,null,null,null,"Self Service Produce"]
[207,null,null,null,null,null,null,null,null,null,"Avacado, Whole",{"$f":"IF(R221=0,\"\",$C$8*R221)","v":""},"CN"]
[208,null,null,null,null,null,null,null,null,null,"Baby Grn Patty Pan "]
[209,null,null,null,null,null,null,null,null,null,"Baby Spinach ","","BG"]
[210,null,null,null,null,null,null,null,null,null,"Baby Yellow Patty Pan ","","CN"]
[211,null,null,null,null,null,null,null,null,null,"Baby Zucchini Squash ","","BG"]
[212,null,null,null,null,null,null,null,null,null,"Basil","","CO"]
[213,null,null,null,null,null,null,null,null,null,"Belgian Endive","","CO"]
[214,null,null,null,null,null,null,null,null,null,"Blackberries ","","CO"]
[215,null,null,null,null,null,null,null,null,null,"Blueberries ","","LBS"]
[216,null,null,null,null,null,null,null,null,null,"Bok Choy ","","CO"]
[217,null,null,null,null,null,null,null,null,null,"Boston Lettuce ","","EA"]
[218,null,null,null,null,null,null,null,null,null,"Broccoli","","EA"]
[219,null,null,null,null,null,null,null,null,null,"Broccoli Floret","","CO"]
[220,null,null,null,null,null,null,null,null,null,"Butternut Squash","","GAL"]
[221,null,null,null,null,null,null,null,null,null,"Button Mushroom Petite","","CO"]
[222,null,null,null,null,null,null,null,null,null,"Cabbage, Napa ","","GAL"]
[223,null,null,null,null,null,null,null,null,null,"Cantaloupe ","","CO"]
[224,null,null,null,null,null,null,null,null,null,"Carrots, Jumbo ","","B/T"]
[225,null,null,null,null,null,null,null,null,null,"Cauliflower ","","B/T"]
[226,null,null,null,null,null,null,null,null,null,"Celery ","","B/T"]
[227,null,null,null,null,null,null,null,null,null,"Cello Spinach ","","B/T"]
[228,null,null,null,null,null,null,null,null,null,"Cherry Tomato ","","CO"]
[229,null,null,null,null,null,null,null,null,null,"Cilantro Crate","","GAL"]
[230,null,null,null,null,null,null,null,null,null,"Dill","","CO"]
[231,null,null,null,null,null,null,null,null,null,"Dried Cherries","","GAL"]
[232,null,null,null,null,null,null,null,null,null,"Dried Cranberries","","GAL"]
[233,null,null,null,null,null,null,null,null,null,"Eggplant ","","CO"]
[234,null,null,null,null,null,null,null,null,null,"Endive ","","GAL"]
[235,null,null,null,null,null,null,null,null,null,"Iceberg Lettuce ","","BG"]
[236,null,null,null,null,null,null,null,null,null,"Flat Leaf Spinach ","","B/T"]
[237,null,null,null,null,null,null,null,null,null,"Fresh Rosemary ","","CO"]
[238,null,null,null,null,null,null,null,null,null,"Fresh Thyme ","","B/T"]
[239,null,null,null,null,null,null,null,null,null,"Ginger Root Brazilian/Hawaiian","","CN"]
[240,null,null,null,null,null,null,null,null,null,"Golden Apples ","","B/T"]
[241,null,null,null,null,null,null,null,null,null,"Granny Smith Apples ","","BG"]
[242,null,null,null,null,null,null,null,null,null,"Grape Tomato ","","BG"]
[243,null,null,null,null,null,null,null,null,null,"Green Leaf Leaves","","CO"]
[244,null,null,null,null,null,null,null,null,null,"Green Onion ","","GAL"]
[245,null,null,null,null,null,null,null,null,null,"Honeydew Melon ",{"$f":"IF(R258=0,\"\",$C$8*R258)","v":""},"CO"]
[246,null,null,null,null,null,null,null,null,null,"Idaho Baking Potato ","","GAL"]
[247,null,null,null,null,null,null,null,null,null,"Jalapeno Pepper ","","CO"]
[248,null,null,null,null,null,null,null,null,null,"Jumbo Carrots ","","BX"]
[249,null,null,null,null,null,null,null,null,null,"Kiwi","","CO"]
[250,null,null,null,null,null,null,null,null,null,"Large Green Pepper ","","BG"]
[251,null,null,null,null,null,null,null,null,null,"Leeks","","CO"]
[252,null,null,null,null,null,null,null,null,null,"Mushroom, Fancy ","","CO"]
[253,null,null,null,null,null,null,null,null,null,"Mushroom, Oyster ","","CO"]
[254,null,null,null,null,null,null,null,null,null,"Muchroom, Portabella Cap","","CO"]
[255,null,null,null,null,null,null,null,null,null,"Mushroom, Shitake ","","CN"]
[256,null,null,null,null,null,null,null,null,null,"Oranges ","","GAL"]
[257,null,null,null,null,null,null,null,null,null,"Papaya ","","BG"]
[258,null,null,null,null,null,null,null,null,null,"Parsley Curly ","","GAL"]
[259,null,null,null,null,null,null,null,null,null,"Parsnip ","","CO"]
[260,null,null,null,null,null,null,null,null,null,"Pineapple ","","CO"]
[261,null,null,null,null,null,null,null,null,null,"Pears","","CO"]
[262,null,null,null,null,null,null,null,null,null,"Petite Baby Carrots ","","CO"]
[263,null,null,null,null,null,null,null,null,null,"Radish Cello ",""]
[264,null,null,null,null,null,null,null,null,null,"Radicchio ","","GAL"]
[265,null,null,null,null,null,null,null,null,null,"Raspberries ","","CN"]
[266,null,null,null,null,null,null,null,null,null,"Red Apple ","","CO"]
[267,null,null,null,null,null,null,null,null,null,"Red Bell Pepper ","","CO"]
[268,null,null,null,null,null,null,null,null,null,"Red Bliss A Potato ","","CN"]
[269,null,null,null,null,null,null,null,null,null,"Red Cabbage ","","B/T"]
[270,null,null,null,null,null,null,null,null,null,"Red Grapes Seedless ","","GAL"]
[271,null,null,null,null,null,null,null,null,null,"Red Leaf","","CO"]
[272,null,null,null,null,null,null,null,null,null,"Red Onion Jumbo","","BG"]
[273,null,null,null,null,null,null,null,null,null,"Roma Tomato","","CO"]
[274,null,null,null,null,null,null,null,null,null,"Lemons","","CO"]
[275,null,null,null,null,null,null,null,null,null,"Romaine Leaves","","GAL"]
[276,null,null,null,null,null,null,null,null,null,"Ruby Red Grapefruit","","CN"]
[277,null,null,null,null,null,null,null,null,null,"Russet Baker Potato","","LBS"]
[278,null,null,null,null,null,null,null,null,null,"Tarragon","","GAL"]
[279,null,null,null,null,null,null,null,null,null,"Thyme","","GAL"]
[280,null,null,null,null,null,null,null,null,null,"Tomatillo Tomato","","CO"]
[281,null,null,null,null,null,null,null,null,null,"Tomato 40ct","","BX"]
[282,null,null,null,null,null,null,null,null,null,"Watercress","","CO"]
[283,null,null,null,null,null,null,null,null,null,"Watermelon","","CO"]
[284,null,null,null,null,null,null,null,null,null,"White Potato","","CO"]
[285,null,null,null,null,null,null,null,null,null,"Yellow Onion Jumbo","","B/T"]
[286,null,null,null,null,null,null,null,null,null,"Yellow Pepper",{"$f":"IF(R300=0,\"\",$C$8*R300)","v":""},"CO"]
[287,null,null,null,null,null,null,null,null,null,"Yellow Squash Medium",{"$f":"IF(R301=0,\"\",$C$8*R301)","v":""},"CO"]
[288,null,null,null,null,null,null,null,null,null,"Yukon Gold Potato",{"$f":"IF(R302=0,\"\",$C$8*R302)","v":""},"CO"]
[289,null,null,null,null,null,null,null,null,null,"Zucchini Med Fancy",{"$f":"IF(R303=0,\"\",$C$8*R303)","v":""},"BG"]
[290,null,null,null,null,null,null,null,null,null,"Self Service Dairy"]
[291,null,null,null,null,null,null,null,null,null,"Asiago Cheese ","","GAL"]
[292,null,null,null,null,null,null,null,null,null,"Blue Cheese ","","LBS"]
[293,null,null,null,null,null,null,null,null,null,"Butter Solids, Salted","","CO"]
[294,null,null,null,null,null,null,null,null,null,"Butter, Unsalted","","CO"]
[295,null,null,null,null,null,null,null,null,null,"Buttermilk ","","LBS"]
[296,null,null,null,null,null,null,null,null,null,"Cheddar Cheese ","","LBS"]
[297,null,null,null,null,null,null,null,null,null,"Cream Cheese ","","GAL"]
[298,null,null,null,null,null,null,null,null,null,"Cream, Heavy Whipping 40%","","GAL"]
[299,null,null,null,null,null,null,null,null,null,"Danish Blue Cheese ","","B/T"]
[300,null,null,null,null,null,null,null,null,null,"Egg Beaters","","CO"]
[301,null,null,null,null,null,null,null,null,null,"Eggs ","","CO"]
[302,null,null,null,null,null,null,null,null,null,"Feta Cheese ","","B/T"]
[303,null,null,null,null,null,null,null,null,null,"Gorgonzola Cheese ","","GAL"]
[304,null,null,null,null,null,null,null,null,null,"Gouda Cheese ","","B/T"]
[305,null,null,null,null,null,null,null,null,null,"Half & Half ","","B/T"]
[306,null,null,null,null,null,null,null,null,null,"Heavy Cream ","","B/T"]
[307,null,null,null,null,null,null,null,null,null,"Margarine ","","BG"]
[308,null,null,null,null,null,null,null,null,null,"Mascarpone Cheese ","","LBS"]
[309,null,null,null,null,null,null,null,null,null,"Milk ","","CO"]
[310,null,null,null,null,null,null,null,null,null,"Monterey Jack Cheese ",{"$f":"IF(R323=0,\"\",$C$8*R323)","v":""},"CO"]
[311,null,null,null,null,null,null,null,null,null,"Mozzarella Cheese ","","LBS"]
[312,null,null,null,null,null,null,null,null,null,"Muenster Cheese","","LBS"]
[313,null,null,null,null,null,null,null,null,null,"Parmesan, block","","LBS"]
[314,null,null,null,null,null,null,null,null,null,"Plain Yogurt","","CO"]
[315,null,null,null,null,null,null,null,null,null,"Provolone Cheese","","LBS"]
[316,null,null,null,null,null,null,null,null,null,"Ricotta Cheese","","EA"]
[317,null,null,null,null,null,null,null,null,null,"Sharp Cheddar Cheese","","CO"]
[318,null,null,null,null,null,null,null,null,null,"Sour Cream","","CO"]
[319,null,null,null,null,null,null,null,null,null,"Stilton Blue Cheese","","CO"]
[320]
[321]
[322]
[323]
[324]
[325]
[326]
[327]
[328]
[329]
[330]
[331]
[332]
[333]
[334]
[335]
[336]
[337]
[338]
[339]
[340]
[341]
[342]
[343]
[344]
[345]
[346]
[347]
[348]
[349]
[350]
[351]
[352]
[353]
[354]
[355]
[356]
[357]
[358]
[359]
[360]
[361]
[362]
[363]
[364]
[365]
[366]
[367]
[368]
[369]
[370]
[371]
[372]
[373]
[374]
[375]
[376]
[377]
[378]
[379]
[380]
[381]
[382]
[383]
[384]
[385]
[386]
[387]
[388]
[389]
[390]
[391]
[392]
[393]
[394]
[395]
[396]
[397]
[398]
[399]
[400]
[401]
[402]
[403]
[404]
[405]
[406]
[407]
[408]
[409]
[410]
[411]
[412]
[413]
[414]
[415]
[416]
[417]
[418]
[419]

{"sheet":"Day 14 Practical ","index":1,"n_rows":244,"n_cols":17,"rows_kept":244,"cut":false,"hidden":true,"merged":[[0,0,0,8],[1,0,1,8],[7,7,7,8],[8,13,8,16],[9,13,9,14],[9,15,9,16],[2,2,2,3],[4,2,4,3]]}
["PROFILE REQUISITION:"]
["Please submit order 3 business days in advance"]
[null,"Class:","A la Carte, DAY 14 (Practical)",null,null,"Delivery Date:"]
[]
[null,"Req'd By:",null,null,null,"Submitted:"]
[]
[null,"Multi:",1,null,null,null,"6 Trays/students Only"]
[null,null,null,null,null,null,null,"Do Not Use"]
["#","CODE","CAT","INGREDIENT","AMT","U/M","SPECIFICATIONS","ORD","REC",null,1,null,null,"Administrator Only"]
[1,"Alch",null,"Wine, white, dry",{"$f":"IF(K10=0,\"\",$C$7*K10)","v":1},{"$f":"IF(L10=0,\"\",L10)","v":"Cup"},null,null,null,null,1,"Cup",null,"Units of Measure List",null,"Ordering Codes"]
[2,"Bake",null,"Bread, pullman, unsliced",0.5,"Loaf",null,null,null,null,0.5,"Loaf",null,"Bag","Bag","Dairy","Dairy, eggs"]
[3,"Dairy",null,"Butter, whole, unsalted",2.5,"LB",null,null,null,null,2.5,"LB",null,"Bch","Bunch","Groc","Grocery (Dry, Canned, Spices, etc)"]
[4,"Dairy",null,"Eggs, large",1,"Flat",null,null,null,null,1,"Flat",null,"Bskt","Basket","Fish","Fish and Seafood"]
[5,"Dairy",null,"Heavy cream",2,"Qt",null,null,null,null,2,"Qt",null,"Bx","Box","Prod","Produce"]
[6,"Fish",null,"Flounder, fillet",1,"LB",null,null,null,null,1,"LB",null,"Can","Can","Meat","Meat"]
[7,"Fish",null,"Mahimahi, center cut (no tails)",12,"Ozw",null,null,null,null,12,"Ozw",null,"Cup","Cup","Bake","Bread and Baked Goods"]
[8,"Fish",null,"Salmon, fillet",1,"LB",null,null,null,null,1,"LB",null,"Crtn","Carton","Alch","Alcoholic Beverages"]
[9,"Groc",null,"Flour, 00 all-purpose",0.5,"LB",null,null,null,null,0.5,"LB",null,"Cs","Case","Spec","Specialty Items"]
[10,"Groc",null,"Flour, bread",1,"LB",null,null,null,null,1,"LB",null,"EA","Each"]
[11,"Groc",null,"lentils, french green (le puy)",6,"Ozw",null,null,null,null,6,"Ozw",null,"Flat","Flat"]
[12,"Groc",null,"Nuts, almonds, slivered",0.5,"LB",null,null,null,null,0.5,"LB",null,"Gal","Gallon"]
[13,"Groc",null,"Oil, olive, pure",0.5,"Qt",null,null,null,null,0.5,"Qt",null,"Gr","Gram"]
[14,"Groc",null,"Oil, vegetable",0.5,"Gal",null,null,null,null,0.5,"Gal",null,"Hd","Head"]
[15,"Groc",null,"Red currant jelly",1,"Cup",null,null,null,null,1,"Cup",null,"Kilo","Kilo"]
[16,"Groc",null,"Rice, long grain white",8,"Ozw",null,null,null,null,8,"Ozw",null,"LB","Pound"]
[17,"Groc",null,"Salt, kosher",1,"Bx",null,null,null,null,1,"Bx",null,"Loaf","Loaf"]
[18,"Groc",null,"Spice, bayleaf",1,"Ozw",null,null,null,null,1,"Ozw",null,"Ozv","Fluid Ounce (Volume)"]
[19,"Groc",null,"Spice, peppercorn, black",1,"Ozw",null,null,null,null,1,"Ozw",null,"Ozw","Ounce (wright)"]
[20,"Meat",null,"Bacon, slice",2,"Ozw",null,null,null,null,2,"Ozw",null,"Pk","Pack"]
[21,"Meat",null,"Beef, Shank, Ground",24,"Ozw",null,null,null,null,24,"Ozw",null,"Pt","Pint"]
[22,"Meat",null,"Beef, Shank, large chunk or 1\" cubes",12,"Ozw",null,null,null,null,12,"Ozw",null,"Qt","Quart"]
[23,"Meat",null,"Chicken, airline breast 6 ozw. Avg.",2,"EA",null,null,null,null,2,"EA",null,"Tbl","Tablespoon"]
[24,"Meat",null,"Chicken, breast, ground, course",12,"Ozw",null,null,null,null,12,"Ozw",null,"Tray","Tray"]
[25,"Meat",null,"Chicken, Whole 2.5# avg",1,"EA",null,null,null,null,1,"EA",null,"tsp","Teaspoon"]
[26,"Meat",null,"Ham hock",2,"Ozw",null,null,null,null,2,"Ozw"]
[27,"Prod",null,"Apples, granny smith",0.5,"LB",null,null,null,null,0.5,"LB"]
[28,"Prod",null,"Beets, Red",6,"Ozw",null,null,null,null,6,"Ozw"]
[29,"Prod",null,"Broccoli, head",1,"EA",null,null,null,null,1,"EA"]
[30,"Prod",null,"cabbage, red",3,"LB",null,null,null,null,3,"LB"]
[31,"Prod",null,"Carrots, cello",3,"LB",null,null,null,null,3,"LB"]
[32,"Prod",null,"Cauliflower, whole, small",0.5,"EA",null,null,null,null,0.5,"EA"]
[33,"Prod",null,"Celery",{"$f":"IF(K42=0,\"\",$C$7*K42)","v":2},{"$f":"IF(L42=0,\"\",L42)","v":"LB"},null,null,null,null,2,"LB"]
[34,"Prod",null,"Garlic, whole",4,"Hd",null,null,null,null,4,"Hd"]
[35,"Prod",null,"Green Beans",9,"Ozw",null,null,null,null,9,"Ozw"]
[36,"Prod",null,"Herbs, chervil",1,"Bch",null,null,null,null,1,"Bch"]
[37,"Prod",null,"Herbs, chives",1,"Bch",null,null,null,null,1,"Bch"]
[38,"Prod",null,"Herbs, parsley",1,"Bch",null,null,null,null,1,"Bch"]
[39,"Prod",null,"Herbs, rosemary",1,"Bch",null,null,null,null,1,"Bch"]
[40,"Prod",null,"Herbs, tarragon",1,"Bch",null,null,null,null,1,"Bch"]
[41,"Prod",null,"Herbs, thyme",1,"Bch",null,null,null,null,1,"Bch"]
[42,"Prod",null,"Leeks",2,"LB",null,null,null,null,2,"LB"]
[43,"Prod",null,"Lemons",4,"EA",null,null,null,null,4,"EA"]
[44,"Prod",null,"Mushroom, crimini",2,"LB",null,null,null,null,2,"LB"]
[45,"Prod",null,"Onions, spanish",5,"LB",null,null,null,null,5,"LB"]
[46,"Prod",null,"Peas, green, fresh",1,"LB",null,null,null,null,1,"LB"]
[47,"Prod",null,"pineapple, whole, gold",1,"EA",null,null,null,null,1,"EA"]
[48,"Prod",null,"Potato, Chef",2,"LB",null,null,null,null,2,"LB"]
[49,"Prod",null,"Potato, red, b size",4,"LB",null,null,null,null,4,"LB"]
[50,"Prod",null,"Potato, russet",1.5,"LB",null,null,null,null,1.5,"LB"]
[51,"Prod",null,"Shallots",1,"LB",null,null,null,null,1,"LB"]
[52,"Prod",null,"Spinach, bunched",1,"LB",null,null,null,null,1,"LB"]
[53,"Prod",null,"Spinach, cello, baby",0.5,"Bag",null,null,null,null,0.5,"Bag"]
[54,"Prod",null,"squash, zucchini",1,"EA",null,null,null,null,1,"EA"]
[55,"Prod",null,"Tomato, roma, RIPE",6,"EA",null,null,null,null,6,"EA"]
[56,"Prod",null,"Turnip, white",1,"LB",null,null,null,null,1,"LB"]
[57,"Prod",null,"Turnip, yellow, rutabega",0.5,"LB",null,null,null,null,0.5,"LB"]
[58,"Spec",null,"Duck fat or lard",1,"Cup",null,null,null,null,1,"Cup"]
[59,"Spec",null,"Stock, brown veal",1,"Gal",null,null,null,null,1,"Gal"]
[60,"Spec",null,"Stock, chicken",2,"Gal",null,null,null,null,2,"Gal"]
[61,"Spec",null,"Stock, fish",0.5,"Gal",null,null,null,null,0.5,"Gal"]
[62,"Spec",null,"Stock, white beef",2,"Gal",null,null,null,null,2,"Gal"]
[63,null,null,null,{"$f":"IF(K72=0,\"\",$C$7*K72)","v":""},{"$f":"IF(L72=0,\"\",L72)","v":""}]
[64,null,null,null,"",""]
[65,null,null,null,{"$f":"IF(K74=0,\"\",$C$7*K74)","v":""},""]
[66,null,null,null,"",{"$f":"IF(L75=0,\"\",L75)","v":""}]
[67,null,null,null,"",""]
[68,null,null,null,"",""]
[69,null,null,null,"",""]
[70,null,null,null,"",""]
[71,null,null,null,"",""]
[72,null,null,null,"",""]
[73,null,null,null,"",""]
[74,null,null,null,"",""]
[75,null,null,null,"",""]
[76,null,null,null,"",""]
[77,null,null,null,"",""]
[78,null,null,null,{"$f":"IF(K87=0,\"\",$C$7*K87)","v":""},""]
[79,null,null,null,{"$f":"IF(K88=0,\"\",$C$7*K88)","v":""},""]
[80,null,null,null,"",""]
[81,null,null,null,"",""]
[82,null,null,null,"",""]
[83,null,null,null,"",""]
[84,null,null,null,"",""]
[85,null,null,null,"",""]
[86,null,null,null,"",""]
[87,null,null,null,"",""]
[88,null,null,null,"",""]
[89,null,null,null,"",""]
[90,null,null,null,"",""]
[91,null,null,null,"",""]
[92,null,null,null,"",""]
[93,null,null,null,"",""]
[94,null,null,null,"",""]
[95,null,null,null,"",""]
[96,null,null,null,"",""]
[97,null,null,null,"",""]
[98,null,null,null,"",""]
[99,null,null,null,"",""]
[100,null,null,null,"",""]
[101,null,null,null,"",""]
[102,null,null,null,"",""]
[103,null,null,null,"",""]
[104,null,null,null,"",""]
[105,null,null,null,"",""]
[106,null,null,null,"",""]
[107,null,null,null,"",""]
[108,null,null,null,"",""]
[109,null,null,null,"",""]
[110,null,null,null,"",""]
[111,null,null,null,"",""]
[112,null,null,null,"",""]
[113,null,null,null,"",""]
[114,null,null,null,"",""]
[115,null,null,null,"",""]
[116,null,null,null,"",""]
[117,null,null,null,"",""]
[118,null,null,null,"",""]
[119,null,null,null,"",""]
[120,null,null,null,"",""]
[121,null,null,null,"",""]
[122,null,null,null,"",""]
[123,null,null,null,"",""]
[124,null,null,null,"",""]
[125,null,null,null,"",""]
[126,null,null,null,"",""]
[127,null,null,null,"",""]
[128,null,null,null,"",""]
[129,null,null,null,"",""]
[130,null,null,null,"",{"$f":"IF(L139=0,\"\",L139)","v":""}]
[131,null,null,null,"",""]
[132,null,null,null,"",""]
[133,null,null,null,"",""]
[134,null,null,null,"",""]
[135,null,null,null,"",""]
[136,null,null,null,"",""]
[137,null,null,null,"",""]
[138,null,null,null,"",""]
[139,null,null,null,"",""]
[140,null,null,null,"",""]
[141,null,null,null,"",""]
[142,null,null,null,"",""]
[143,null,null,null,{"$f":"IF(K152=0,\"\",$C$7*K152)","v":""},""]
[144,null,null,null,"",""]
[145,null,null,null,"",""]
[146,null,null,null,"",""]
[147,null,null,null,"",""]
[148,null,null,null,"",""]
[149,null,null,null,"",""]
[150,null,null,null,"",""]
[151,null,null,null,"",""]
[152,null,null,null,"",""]
[153,null,null,null,"",""]
[154,null,null,null,"",""]
[155,null,null,null,"",""]
[156,null,null,null,"",""]
[157,null,null,null,"",""]
[158,null,null,null,"",""]
[159,null,null,null,"",""]
[160,null,null,null,"",""]
[161,null,null,null,"",""]
[162,null,null,null,"",""]
[163,null,null,null,"",""]
[164,null,null,null,"",""]
[165,null,null,null,"",""]
[166,null,null,null,"",""]
[167,null,null,null,"",""]
[168,null,null,null,"",""]
[169,null,null,null,"",""]
[170,null,null,null,"",""]
[171,null,null,null,"",""]
[172,null,null,null,"",""]
[173,null,null,null,"",""]
[174,null,null,null,"",""]
[175,null,null,null,"",""]
[176,null,null,null,"",""]
[177,null,null,null,"",""]
[178,null,null,null,"",""]
[179,null,null,null,"",""]
[180,null,null,null,"",""]
[181,null,null,null,"",""]
[182,null,null,null,"",""]
[183,null,null,null,"",""]
[184,null,null,null,"",""]
[185,null,null,null,"",""]
[186,null,null,null,"",""]
[187,null,null,null,"",""]
[188,null,null,null,"",""]
[189,null,null,null,"",""]
[190,null,null,null,"",""]
[191,null,null,null,"",""]
[192,null,null,null,"",""]
[193,null,null,null,"",""]
[194,null,null,null,"",{"$f":"IF(L203=0,\"\",L203)","v":""}]
[195,null,null,null,"",""]
[196,null,null,null,"",""]
[197,null,null,null,"",""]
[198,null,null,null,"",""]
[199,null,null,null,"",""]
[200,null,null,null,"",""]
[201,null,null,null,"",""]
[202,null,null,null,"",""]
[203,null,null,null,"",""]
[204,null,null,null,"",""]
[205,null,null,null,"",""]
[206,null,null,null,"",""]
[207,null,null,null,{"$f":"IF(K216=0,\"\",$C$7*K216)","v":""},""]
[208,null,null,null,"",""]
[209,null,null,null,"",""]
[210,null,null,null,"",""]
[211,null,null,null,"",""]
[212,null,null,null,"",""]
[213,null,null,null,"",""]
[214,null,null,null,"",""]
[215,null,null,null,"",""]
[216,null,null,null,"",""]
[217,null,null,null,"",""]
[218,null,null,null,"",""]
[219,null,null,null,"",""]
[220,null,null,null,"",""]
[221,null,null,null,"",""]
[222,null,null,null,"",""]
[223,null,null,null,"",""]
[224,null,null,null,"",""]
[225,null,null,null,"",""]
[226,null,null,null,"",""]
[227,null,null,null,"",""]
[228,null,null,null,"",""]
[229,null,null,null,"",""]
[230,null,null,null,"",""]
[231,null,null,null,"",""]
[232,null,null,null,"",""]
[233,null,null,null,"",""]
[234,null,null,null,"",""]
[235,null,null,null,"",""]